bitfinex/quotes_ETHUSD_20260208
["timestamp","ask_amount","ask_price","bid_price","bid_amount"]
[1770554022999,5.62391796,2140.8,2140.0,0.04223766]
[1770554023290,5.62391796,2140.8,2139.9,0.0011]
[1770554023291,0.95254879,2140.6,2139.9,0.0011]
[1770554023490,1.38762886,2140.5,2139.9,0.0011]
[1770554023697,0.43508007,2140.4,2139.9,0.0011]
[1770554024464,1.16806055,2140.3,2139.9,0.0011]
[1770554025107,0.95254879,2140.2,2139.9,0.0011]
[1770554025284,0.95254879,2140.0,2138.8,0.04333766]
[1770554025612,3.70032609,2140.1,2138.8,1.1699478]
[1770554025613,0.95254879,2139.8,2138.8,1.1699478]
[1770554025798,1.38787488,2139.7,2138.8,1.21218546]
[1770554025969,0.95254879,2139.7,2138.8,0.04333766]
[1770554026170,0.95254879,2139.7,2138.8,1.21221463]
[1770554026392,0.95254879,2139.7,2138.8,0.04223766]
[1770554026696,0.95254879,2139.5,2138.5,0.04223766]
[1770554026924,1.60394058,2139.6,2138.6,1.16897592]
[1770554026925,1.38809952,2139.4,2138.6,1.16897592]
[1770554027125,0.95254879,2139.4,2138.6,1.16897592]
[1770554027292,0.95254879,2139.4,2138.6,1.16898375]
[1770554027491,0.95254879,2139.4,2138.5,1.21124827]
[1770554027915,0.95254879,2139.4,2138.6,1.16898833]
[1770554028430,1.16833348,2139.8,2139.1,0.04223766]
[1770554028724,4.67297997,2140.0,2139.4,0.04223766]
[1770554028928,0.43541725,2139.9,2139.4,0.04223766]
[1770554029102,4.67297997,2140.0,2139.4,0.04223766]
[1770554029516,4.75514592,2140.1,2139.7,0.04223766]
[1770554029517,0.32192163,2140.1,2139.7,0.04223766]
[1770554030024,1.49009782,2140.1,2139.4,1.21078937]
[1770554030389,1.49009782,2140.1,2139.4,1.21078865]
[1770554030893,1.49009782,2140.1,2139.0,3.265]
[1770554031096,0.95254879,2139.9,2138.8,1.21111445]
[1770554031314,1.38814702,2139.8,2138.8,1.16887679]
[1770554031612,0.43559823,2139.7,2138.7,1.16889262]
[1770554031801,0.43578344,2139.6,2138.8,0.04223766]
[1770554031994,0.95254879,2139.8,2138.8,0.04223766]
[1770554032187,1.38834274,2139.7,2138.8,0.04223766]
[1770554032409,0.95254879,2139.5,2138.5,1.21125144]
[1770554032592,1.38834274,2139.4,2138.5,0.04223766]
[1770554032796,0.95254879,2139.2,2138.5,1.21126999]
[1770554033000,1.16860655,2139.3,2138.5,1.21126999]
[1770554034095,1.16860655,2139.3,2138.5,1.21236999]
[1770554034821,0.95254879,2139.8,2138.8,0.04223766]
[1770554034996,1.38840106,2139.7,2138.8,0.04223766]
[1770554035194,1.38840106,2139.6,2138.8,0.04223766]
[1770554035509,0.95254879,2139.4,2138.8,0.04223766]
[1770554035819,0.95254879,2139.2,2138.5,0.0011]
[1770554036596,0.95254879,2139.6,2138.5,0.0011]
[1770554036912,0.43561799,2139.5,2138.5,0.0011]
[1770554037114,1.16860655,2139.3,2138.7,0.94438731]
[1770554037300,1.16860655,2139.3,2139.0,0.04223766]
[1770554037509,4.67386339,2139.6,2139.0,0.04223766]
[1770554037724,1.16844269,2139.6,2139.0,0.04223766]
[1770554037910,1.16827889,2139.9,2139.3,0.04223766]
[1770554038104,0.43538025,2139.8,2139.3,0.04223766]
[1770554038427,1.16827889,2139.9,2139.3,0.04223766]
[1770554039000,4.67311556,2140.0,2139.0,1.21096108]
[1770554039224,4.67311556,2140.0,2139.1,1.16871229]
[1770554039225,1.38789144,2139.9,2139.1,1.16871229]
[1770554039530,0.95254879,2139.9,2139.1,1.16871229]
[1770554040695,0.95254879,2139.9,2138.7,1.21113481]
[1770554040901,0.95254879,2139.7,2138.7,0.04223766]
[1770554041096,1.16849731,2139.5,2138.5,0.90324965]
[1770554041330,0.95254879,2139.3,2138.5,0.0011]
[1770554041622,0.43536174,2139.2,2138.5,0.0011]
[1770554041827,0.95254879,2139.3,2138.5,0.0011]
[1770554041993,0.43527033,2139.2,2138.5,0.0011]
[1770554042198,0.95254879,2139.3,2138.5,0.0011]
[1770554042394,4.43449731,2139.5,2138.5,0.0011]
[1770554042395,0.95254879,2139.1,2138.5,0.0011]
[1770554042595,0.43524257,2139.0,2138.5,0.0011]
[1770554042814,0.95254879,2139.0,2138.5,0.0011]
[1770554043022,0.43525371,2138.9,2138.5,0.0011]
[1770554043327,1.16866118,2139.2,2138.5,0.0011]
[1770554043515,0.43515108,2139.1,2138.5,0.0011]
[1770554043720,1.11866118,2139.2,2138.5,0.0011]
[1770554045725,1.11866118,2139.2,2138.7,0.0011]
[1770554046233,4.43464585,2139.3,2138.8,0.04223766]
[1770554048304,4.43464585,2139.3,2138.7,0.0011]
[1770554048505,0.97698732,2139.1,2138.7,0.0011]
[1770554049129,0.97698732,2139.1,2138.5,0.0011]
[1770554049301,1.41245753,2139.0,2138.5,0.0011]
[1770554049506,1.16882509,2138.9,2138.5,0.0011]
[1770554051638,0.97698732,2139.1,2138.5,0.0011]
[1770554051835,1.4129325,2139.0,2138.5,0.0011]
[1770554052041,1.4129325,2138.9,2138.5,0.0011]
[1770554052348,0.97698732,2138.7,2138.2,0.0011]
[1770554052516,0.43624005,2138.6,2138.2,0.0011]
[1770554052716,0.97698732,2138.7,2138.2,0.0011]
[1770554053026,0.43623971,2138.6,2138.2,0.0011]
[1770554053232,0.97698732,2138.7,2138.2,0.0011]
[1770554053439,1.413391,2138.6,2138.2,0.0011]
[1770554053626,0.97698732,2138.6,2138.2,0.0011]
[1770554053821,1.16904372,2138.5,2138.0,5.23892829]
[1770554054045,0.43643917,2138.4,2138.0,5.23892829]
[1770554054342,1.16904372,2138.5,2138.0,5.23892829]
[1770554054515,0.43648678,2138.4,2138.0,5.23892829]
[1770554054716,1.16904372,2138.5,2138.0,5.23892829]
[1770554054912,0.4364871,2138.4,2138.0,5.23892829]
[1770554055111,1.16904372,2138.5,2138.0,5.23892829]
[1770554055316,0.43635576,2138.4,2138.0,5.23892829]
[1770554055539,0.43635576,2138.3,2138.0,5.23892829]
[1770554055736,2.16576167,2138.5,2138.0,5.23892829]
[1770554055917,1.16915306,2138.3,2138.0,5.23892829]
[1770554058047,4.67612513,2138.6,2138.2,0.0011]
[1770554058244,0.43614777,2138.5,2138.2,0.0011]
[1770554058547,4.67612513,2138.6,2138.2,0.0011]
[1770554058744,0.43610619,2138.5,2138.2,0.0011]
[1770554058930,4.67612513,2138.6,2138.2,0.0011]
[1770554059122,0.43610619,2138.5,2138.2,0.0011]
[1770554059322,4.67612513,2138.6,2138.2,0.0011]
[1770554059556,0.43613379,2138.5,2138.2,0.0011]
[1770554059721,4.67612513,2138.6,2138.2,0.0011]
[1770554059919,0.43613186,2138.5,2138.2,0.0011]
[1770554060152,4.67612513,2138.6,2138.2,0.0011]
[1770554060452,1.43282332,2138.5,2138.2,0.0011]
[1770554060633,0.43610537,2138.4,2138.2,0.0011]
[1770554060819,0.99671795,2138.5,2138.2,0.0011]
[1770554061023,0.43641317,2138.4,2138.2,0.0011]
[1770554061222,0.43646685,2138.3,2137.8,0.0011]
[1770554061526,0.99671795,2138.5,2137.8,0.0011]
[1770554061723,4.67612513,2138.6,2137.8,0.0011]
[1770554061724,1.43318593,2138.4,2137.8,0.0011]
[1770554061919,0.43646798,2138.3,2137.8,0.0011]
[1770554062128,1.16915306,2138.3,2137.4,1.16961871]
[1770554062331,0.43648408,2138.2,2137.4,1.16961871]
[1770554062538,1.16915306,2138.3,2137.5,1.16958827]
[1770554062753,0.43648597,2138.2,2137.5,1.16958827]
[1770554063054,2.16587101,2138.3,2137.4,1.16961641]
[1770554063222,0.43642956,2138.2,2137.4,1.16961641]
[1770554063423,2.16587101,2138.3,2137.4,1.16960618]
[1770554063649,0.43643552,2138.2,2137.4,1.16960618]
[1770554063847,2.16587101,2138.3,2137.4,1.16960618]
[1770554064126,0.43643564,2138.2,2137.4,1.16960618]
[1770554064327,2.16587101,2138.3,2137.4,1.16960618]
[1770554064543,0.43640403,2138.2,2137.4,1.16960618]
[1770554064744,2.16587101,2138.3,2137.4,1.16960618]
[1770554064939,0.43640391,2138.2,2137.4,1.16960618]
[1770554065145,1.16915306,2138.3,2137.4,1.16960618]
[1770554065643,1.16915306,2138.3,2137.6,0.04223766]
[1770554066147,1.16915306,2138.3,2137.9,0.04223766]
[1770554066331,1.16904372,2138.5,2137.9,0.04223766]
[1770554066532,0.43637556,2138.4,2137.9,0.04223766]
[1770554066733,4.43704372,2138.5,2137.9,0.04223766]
[1770554066918,0.43637438,2138.4,2137.9,0.04223766]
[1770554067126,4.43704372,2138.5,2137.9,0.04223766]
[1770554067452,0.43638856,2138.4,2137.6,1.21173507]
[1770554067624,0.99671795,2138.4,2137.6,0.04223766]
[1770554067820,4.43704372,2138.5,2137.3,3.30923766]
[1770554067821,1.43313191,2138.3,2137.3,3.267]
[1770554068030,0.99671795,2138.3,2137.4,1.169645]
[1770554068345,1.16926242,2138.1,2137.2,2.12549009]
[1770554068645,1.13397102,2138.1,2137.2,2.12549009]
[1770554068847,1.02808587,2138.1,2137.2,2.12629009]
[1770554069037,0.95047563,2138.1,2137.2,2.12629009]
[1770554070041,1.43372679,2138.0,2137.2,1.21385458]
[1770554070239,0.99671795,2138.0,2137.2,1.21385458]
[1770554070435,1.16937181,2137.9,2137.2,0.04413766]
[1770554070675,1.43370296,2137.8,2137.2,0.0019]
[1770554070850,0.43698501,2137.7,2137.1,0.0011]
[1770554071029,1.433773,2137.6,2137.1,0.0011]
[1770554071221,0.43685907,2137.5,2137.1,0.0011]
[1770554071546,0.99671795,2137.6,2137.1,0.0011]
[1770554071733,0.99671795,2137.4,2137.1,0.0011]
[1770554074039,0.99671795,2137.2,2137.1,0.0011]
[1770554074552,1.43302089,2137.2,2136.9,0.0011]
[1770554074852,1.43302089,2137.2,2136.6,0.0011]
[1770554074853,0.99671795,2137.0,2136.6,0.0011]
[1770554075157,1.43309214,2136.9,2136.6,0.0011]
[1770554075353,0.99671795,2136.9,2136.6,0.0011]
[1770554075723,4.43770008,2137.3,2136.6,0.0011]
[1770554075724,1.40254978,2136.8,2136.6,0.0011]
[1770554076050,0.96651563,2136.6,2136.5,0.001]
[1770554076223,0.96651563,2136.6,2136.1,0.0011]
[1770554076224,1.40257041,2136.6,2136.1,0.0011]
[1770554076426,0.96651563,2136.6,2136.2,0.0011]
[1770554077440,4.43902854,2136.7,2136.2,0.0011]
[1770554077641,1.17002854,2136.7,2136.2,0.0011]
[1770554077835,5.64597281,2137.1,2136.2,0.0011]
[1770554078163,3.70434179,2137.0,2136.2,0.0011]
[1770554078353,1.16997379,2136.8,2136.2,0.0011]
[1770554078539,0.43534179,2136.7,2136.2,0.0011]
[1770554078738,1.16997379,2136.8,2136.2,0.0011]
[1770554078949,0.43513673,2136.7,2136.2,0.0011]
[1770554079145,1.16997379,2136.8,2136.2,0.0011]
[1770554079653,2.13648942,2136.8,2136.2,0.0011]
[1770554079958,0.43492642,2136.7,2136.2,0.0011]
[1770554080156,2.13648942,2136.8,2136.2,0.0011]
[1770554080360,2.13648942,2136.8,2136.3,0.0011]
[1770554080542,0.96651563,2136.7,2136.2,0.0011]
[1770554080742,1.16991904,2136.9,2136.2,0.0011]
[1770554080936,4.43891904,2136.9,2136.2,0.0011]
[1770554081138,4.43891904,2136.9,2136.3,0.0011]
[1770554081452,4.43891904,2136.9,2136.2,0.0011]
[1770554081656,5.40543467,2136.9,2136.2,0.0011]
[1770554082854,0.96651563,2136.8,2136.2,0.0011]
[1770554083061,0.96651563,2136.8,2136.4,0.001]
[1770554084053,0.43466071,2136.7,2136.4,0.0021]
[1770554084260,0.96651563,2136.8,2136.4,0.001]
[1770554084456,2.13659893,2136.6,2136.4,0.001]
[1770554085054,2.13659893,2136.6,2136.1,0.0011]
[1770554085252,2.13659893,2136.6,2136.2,0.0011]
[1770554086458,0.96651563,2136.5,2136.2,0.0011]
[1770554086640,0.96651563,2136.5,2136.1,0.0011]
[1770554086641,4.44019284,2136.4,2136.1,0.0011]
[1770554087442,5.40670847,2136.4,2136.2,0.0011]
[1770554087645,3.27,2136.4,2136.2,0.0011]
[1770554088563,2.13681803,2136.2,2135.8,0.0011]
[1770554089566,0.96651563,2136.1,2135.8,0.0011]
[1770554090150,0.96651563,2136.7,2135.8,0.0011]
[1770554090457,1.40079365,2136.6,2135.8,0.0011]
[1770554090646,1.60441609,2136.5,2135.8,0.0011]
[1770554090844,1.17013807,2136.5,2135.8,0.0011]
[1770554091045,0.43433953,2136.4,2135.8,0.0011]
[1770554091370,2.1366537,2136.5,2135.8,0.0011]
[1770554091550,0.43429511,2136.4,2135.8,0.0011]
[1770554091751,2.1366537,2136.5,2135.8,0.0011]
[1770554091949,3.70529519,2136.4,2135.8,0.0011]
[1770554092154,3.271,2136.4,2135.8,0.0011]
[1770554092751,1.17024762,2136.3,2135.8,0.0011]
[1770554094443,0.96651563,2136.2,2135.8,0.0011]
[1770554094768,2.13687282,2136.1,2135.3,0.001]
[1770554094943,1.40114851,2136.0,2135.3,0.001]
[1770554095149,1.17035719,2136.1,2135.3,0.001]
[1770554095150,4.23751563,2135.9,2135.3,0.001]
[1770554095963,4.23751563,2135.9,2135.8,0.001]
[1770554096160,4.23751563,2135.9,2135.3,0.001]
[1770554096487,0.96651563,2135.8,2135.3,0.001]
[1770554096849,3.271,2135.9,2135.3,0.001]
[1770554097167,1.17052158,2135.8,2135.3,0.001]
[1770554097758,2.13703721,2135.8,2135.3,0.001]
[1770554099276,1.40229817,2135.7,2135.3,0.001]
[1770554099579,0.96651563,2135.7,2135.3,0.001]
[1770554099745,0.43580752,2135.6,2135.3,0.001]
[1770554099948,0.43580752,2135.5,2135.3,0.001]
[1770554100146,1.17052158,2135.8,2135.3,0.001]
[1770554100147,3.271,2135.4,2135.3,0.001]
[1770554100451,0.96651563,2135.3,2134.9,0.001]
[1770554100649,0.43625101,2135.2,2134.9,0.001]
[1770554100844,0.43625101,2135.1,2134.9,0.001]
[1770554101069,0.96651563,2135.3,2134.9,0.001]
[1770554101070,1.1708505,2135.2,2134.9,0.001]
[1770554101271,0.4365843,2135.1,2134.9,0.001]
[1770554101475,1.1708505,2135.2,2134.9,0.001]
[1770554101659,0.43628031,2135.1,2134.9,0.001]
[1770554101868,1.1708505,2135.2,2134.9,0.001]
[1770554102058,0.43628056,2135.1,2134.9,0.001]
[1770554102261,1.17082038,2135.3,2134.9,0.001]
[1770554102463,0.43627584,2135.2,2134.9,0.001]
[1770554102770,1.17082038,2135.3,2134.9,0.001]
[1770554102771,0.43627584,2135.1,2134.9,0.001]
[1770554102976,1.17082038,2135.3,2134.9,0.001]
[1770554103172,1.60714136,2135.2,2134.9,0.001]
[1770554103474,1.1708779,2135.2,2134.9,0.001]
[1770554104058,0.43660427,2135.1,2134.9,0.001]
[1770554104265,4.44174219,2135.4,2134.9,0.001]
[1770554104470,0.43646335,2135.3,2134.9,0.001]
[1770554104677,0.43646335,2135.2,2134.9,0.001]
[1770554104986,4.44274219,2135.4,2134.9,0.001]
[1770554105278,0.32010813,2135.6,2134.9,0.97816393]
[1770554105471,0.43648886,2135.5,2134.9,0.97816393]
[1770554105649,1.49077928,2135.6,2134.9,0.97816393]
[1770554105854,0.43649469,2135.5,2134.9,0.001]
[1770554106052,1.01269108,2135.3,2133.9,1.17153812]
[1770554106357,1.01269108,2135.1,2133.9,1.17153812]
[1770554106581,1.01269108,2134.9,2133.8,1.17261499]
[1770554106755,1.01269108,2134.7,2134.0,1.17149489]
[1770554106958,3.70849469,2134.6,2133.9,1.17152316]
[1770554107165,1.60772957,2134.5,2133.8,0.001]
[1770554107365,1.17123488,2134.5,2133.8,0.001]
[1770554107852,0.43609681,2134.4,2133.8,0.001]
[1770554108056,1.17123488,2134.5,2133.8,0.001]
[1770554108558,0.43578118,2134.4,2133.8,0.001]
[1770554108759,1.17123488,2134.5,2133.8,0.001]
[1770554108962,0.43578312,2134.4,2133.8,0.001]
[1770554109156,2.18392596,2134.5,2133.8,0.001]
[1770554109360,1.44848261,2134.4,2133.8,0.001]
[1770554109581,1.01269108,2134.4,2134.0,0.001]
[1770554109776,8.27578473,2134.6,2134.0,0.001]
[1770554109777,3.59093663,2134.6,2134.0,0.001]
[1770554109970,1.49012314,2134.6,2134.0,0.001]
[1770554110401,0.43531223,2134.5,2134.0,0.001]
[1770554110564,2.50281422,2134.6,2134.0,0.001]
[1770554110863,0.43534459,2134.5,2134.0,0.001]
[1770554111055,2.50281422,2134.6,2134.0,0.001]
[1770554111254,0.43542583,2134.5,2134.0,0.001]
[1770554111490,2.50281422,2134.6,2134.0,0.001]
[1770554111703,0.43525754,2134.5,2134.0,0.001]
[1770554111857,2.50281422,2134.6,2134.0,0.001]
[1770554112063,1.44795302,2134.5,2134.0,0.001]
[1770554112385,1.01269108,2134.5,2134.0,0.001]
[1770554112585,0.43518854,2134.4,2134.0,0.001]
[1770554112788,1.01269108,2134.5,2134.0,0.001]
[1770554113088,1.49012314,2134.6,2134.0,0.001]
[1770554113272,0.43526692,2134.5,2134.0,0.001]
[1770554113471,1.49012314,2134.6,2134.0,0.001]
[1770554113688,0.43516155,2134.5,2134.0,0.001]
[1770554113992,1.01269108,2134.5,2134.0,0.001]
[1770554114183,0.43525313,2134.4,2134.0,0.001]
[1770554114382,1.49012314,2134.6,2134.0,0.001]
[1770554114568,0.31893663,2134.6,2134.0,0.001]
[1770554115179,0.31893663,2134.6,2134.0,0.95417268]
[1770554115389,4.44392473,2135.1,2134.3,0.86822103]
[1770554115571,0.43513149,2135.0,2134.2,1.17139911]
[1770554115891,4.44392473,2135.1,2134.2,1.17139911]
[1770554116089,0.43512591,2135.0,2134.2,1.17139911]
[1770554116277,3.273,2135.1,2134.3,0.86929899]
[1770554116692,4.44392824,2135.1,2134.3,0.86929899]
[1770554116897,0.31911252,2135.3,2134.4,0.04223766]
[1770554117068,1.17249355,2135.9,2134.9,0.87036412]
[1770554117405,1.17249355,2135.9,2135.0,1.17096018]
[1770554117406,1.17057639,2135.7,2135.0,1.17096018]
[1770554117693,0.43525912,2135.6,2135.0,1.17096018]
[1770554117901,1.17090912,2135.7,2135.0,2.0413243]
[1770554118193,0.43543341,2135.6,2134.8,1.17105896]
[1770554118393,0.43543341,2135.5,2134.8,1.17106118]
[1770554118596,0.43543341,2135.5,2134.8,1.17105989]
[1770554118800,1.17090912,2135.4,2134.8,1.17105989]
[1770554120097,2.34168078,2135.4,2134.5,1.17123448]
[1770554120298,1.17090912,2135.4,2134.5,1.17123448]
[1770554120472,0.31882055,2135.7,2134.6,0.87349704]
[1770554120673,1.60660291,2135.6,2134.6,0.87349704]
[1770554120871,1.17090912,2135.6,2134.6,0.87349704]
[1770554121075,0.43571484,2135.5,2134.5,1.17123448]
[1770554121274,0.43571484,2135.4,2134.5,1.17123448]
[1770554121503,0.43571484,2135.3,2134.4,1.17128616]
[1770554121701,0.43571484,2135.2,2134.7,0.001]
[1770554121879,0.002,2135.2,2134.7,0.001]
[1770554122278,1.17090912,2135.1,2134.7,0.001]
[1770554122478,1.17090912,2135.1,2134.7,0.8765339]
[1770554122803,0.002,2135.2,2134.7,0.001]
[1770554125273,1.17290912,2135.2,2134.7,0.001]
[1770554125478,1.60747562,2135.1,2134.7,0.001]
[1770554125703,0.43658999,2135.0,2134.7,0.001]
[1770554126015,1.17090912,2135.1,2134.7,0.001]
[1770554126303,0.002,2135.2,2134.7,0.001]
[1770554126480,0.002,2135.2,2134.7,0.88045578]
[1770554127104,0.002,2135.2,2134.7,0.001]
[1770554128315,0.32089994,2135.2,2134.7,0.001]
[1770554129119,0.43681485,2135.1,2134.7,0.001]
[1770554129418,0.32089994,2135.2,2134.7,0.001]
[1770554129718,1.6078779,2135.1,2134.7,0.001]
[1770554129918,0.4369568,2135.0,2134.7,0.001]
[1770554130094,1.48944753,2135.1,2134.7,0.001]
[1770554130294,0.43696095,2135.0,2134.7,0.001]
[1770554130505,1.48944753,2135.1,2134.7,0.001]
[1770554130717,0.4370073,2135.0,2134.7,0.001]
[1770554130895,1.48944753,2135.1,2134.7,0.001]
[1770554131094,0.43700725,2135.0,2134.7,0.001]
[1770554131306,1.48944753,2135.1,2134.7,0.001]
[1770554131502,1.17101503,2134.9,2134.7,0.001]
[1770554131915,1.17099268,2135.0,2134.7,0.001]
[1770554134023,1.6080457,2134.9,2134.7,0.001]
[1770554134224,1.17100156,2135.0,2134.9,0.001]
[1770554134400,0.43704813,2135.0,2134.9,0.001]
[1770554134606,0.31852361,2135.1,2134.9,0.001]
[1770554136301,1.48943243,2135.1,2134.9,0.001]
[1770554137324,0.31852361,2135.1,2134.9,0.001]
[1770554137620,1.48943066,2135.1,2134.9,0.001]
[1770554137794,0.31852361,2135.1,2134.9,0.001]
[1770554137995,0.23502641,2135.1,2134.9,0.001]
[1770554141125,1e-08,2135.1,2134.9,0.001]
[1770554142997,0.002,2135.4,2134.9,0.93760033]
[1770554143194,0.002,2135.9,2135.3,0.04223766]
[1770554143393,0.07114213,2136.0,2135.4,0.89510714]
[1770554143608,0.002,2136.1,2135.4,0.89510714]
[1770554143804,0.43765442,2136.0,2135.4,0.89510714]
[1770554144138,0.43766097,2135.9,2135.1,4.16890961]
[1770554144299,0.43781492,2135.8,2135.1,4.16890961]
[1770554144503,1.49054515,2136.1,2135.1,4.16890961]
[1770554144712,0.43781868,2136.0,2135.1,3.273]
[1770554144931,0.43781868,2135.9,2135.1,3.273]
[1770554145227,0.43781868,2135.8,2135.1,3.273]
[1770554145528,2.44769382,2136.1,2135.2,1.1708505]
[1770554145750,0.43776823,2136.0,2135.2,1.1708505]
[1770554145910,0.43776823,2135.9,2135.2,1.1708505]
[1770554146108,2.44769382,2136.1,2135.2,1.1708505]
[1770554146312,0.43776216,2136.0,2135.2,1.1708505]
[1770554146524,0.43776216,2135.9,2135.2,1.1708505]
[1770554146731,2.44769382,2136.1,2135.2,1.1708505]
[1770554146912,0.4376989,2136.0,2135.2,1.1708505]
[1770554147113,0.002,2135.8,2135.2,1.1708505]
[1770554147727,0.002,2135.8,2135.1,0.001]
[1770554150818,0.002,2135.8,2135.2,0.04223766]
[1770554151017,0.002,2136.0,2135.3,0.90041255]
[1770554152425,0.002,2136.0,2135.4,1.17074084]
[1770554154334,0.002,2136.0,2135.4,2.07197941]
[1770554155710,0.002,2136.0,2135.4,1.17074084]
[1770554156532,0.002,2136.0,2135.4,2.07333201]
[1770554157338,0.002,2136.0,2135.5,0.9032571]
[1770554159120,0.002,2136.0,2135.6,1.1706312]
[1770554159439,0.002,2135.8,2135.6,1.1706312]
[1770554160849,0.002,2136.3,2135.7,0.90524421]
[1770554161351,0.002,2136.3,2135.8,1.17052158]
[1770554161716,0.002,2136.3,2135.8,2.07639417]
[1770554163647,0.002,2136.3,2135.8,1.17052158]
[1770554164668,0.002,2136.3,2135.8,2.07825501]
[1770554164865,0.002,2136.3,2135.9,0.90773343]
[1770554165371,0.002,2136.3,2136.0,2.0787463]
[1770554165946,0.002,2136.3,2136.1,0.90893234]
[1770554166150,0.31909944,2137.3,2136.4,0.95117]
[1770554166492,0.0008,2137.0,2136.4,0.95117]
[1770554166653,0.0008,2137.0,2136.7,0.04223766]
[1770554166864,0.31909944,2137.3,2136.7,0.95175571]
[1770554167260,2.18557711,2137.8,2136.8,1.16997379]
[1770554167467,0.4359126,2137.7,2136.8,1.16997379]
[1770554167681,2.18557711,2137.8,2136.8,1.16997379]
[1770554167986,1.01612054,2137.8,2136.8,1.16997379]
[1770554168881,1.01612054,2137.8,2137.0,0.04223766]
[1770554169674,1.01612054,2137.8,2137.1,1.16980955]
[1770554171965,0.002,2137.6,2137.1,2.08213269]
[1770554172889,0.002,2137.6,2137.1,1.16980955]
[1770554173057,0.002,2137.6,2137.0,4.67923822]
[1770554173058,1.01812054,2137.6,2137.0,1.16983821]
[1770554174277,2.18766,2137.6,2136.7,4.68011411]
[1770554174454,1.00100783,2137.5,2136.7,4.68011411]
[1770554175683,4.27100783,2137.5,2135.9,0.91500883]
[1770554175885,1.00100783,2137.3,2135.8,0.001]
[1770554176096,1.00100783,2137.1,2135.8,4.68293073]
[1770554176266,1.00100783,2136.9,2136.0,1.1713714]
[1770554176588,1.00100783,2136.7,2136.0,0.001]
[1770554178691,1.00100783,2136.5,2136.0,0.001]
[1770554180161,1.17006391,2136.7,2136.0,0.001]
[1770554180373,4.67954783,2137.0,2136.0,0.001]
[1770554180590,1.16997379,2136.8,2136.0,0.001]
[1770554180800,1.16997379,2136.8,2135.8,0.001]
[1770554180801,1.00100783,2136.6,2135.8,0.001]
[1770554180971,1.00100783,2136.4,2135.5,1.17067068]
[1770554181296,1.43624832,2136.3,2135.5,1.17067884]
[1770554181498,1.00100783,2136.3,2135.4,1.17069868]
[1770554182262,1.00100783,2136.3,2135.3,0.001]
[1770554182698,2.17141981,2136.0,2135.3,0.001]
[1770554183381,1.00100783,2135.9,2135.3,0.001]
[1770554184692,2.17152941,2135.8,2135.5,0.001]
[1770554185405,1.00100783,2135.7,2135.3,0.001]
[1770554186281,4.68014474,2136.7,2135.4,0.96370251]
[1770554186488,0.43502014,2136.6,2135.5,0.92146485]
[1770554186795,1.00100783,2136.9,2135.8,1.17052158]
[1770554186978,0.43487466,2136.8,2135.8,1.17052158]
[1770554187189,1.00100783,2136.9,2135.8,1.17052158]
[1770554187513,0.43494172,2136.8,2135.8,1.17052158]
[1770554187714,1.00100783,2136.8,2135.8,1.17052158]
[1770554188993,4.27400783,2137.1,2136.0,0.96466678]
[1770554189205,4.44281249,2137.1,2136.0,0.96466678]
[1770554189415,5.44382032,2137.1,2136.0,0.96466678]
[1770554189716,1.00100783,2137.0,2136.0,0.96466678]
[1770554191227,2.17087532,2137.0,2136.1,1.17035719]
[1770554191389,1.00100783,2137.0,2136.1,1.17035719]
[1770554193024,2.17087836,2137.0,2136.1,1.17035719]
[1770554193528,1.00100783,2137.0,2136.1,1.17035719]
[1770554193725,2.17087679,2137.0,2136.1,1.17035719]
[1770554194329,1.00100783,2137.0,2136.1,1.17035719]
[1770554194489,0.002,2137.3,2136.8,0.92510751]
[1770554194705,0.002,2137.3,2136.9,0.96734517]
[1770554194904,0.002,2137.3,2137.2,0.04223766]
[1770554195205,0.002,2137.3,2136.9,0.04223766]
[1770554195403,0.002,2137.3,2136.9,0.96777228]
[1770554195634,0.002,2137.3,2137.0,1.16986429]
[1770554198004,0.002,2137.1,2137.0,1.16986429]
[1770554199141,0.002,2137.6,2137.0,2.09744878]
[1770554199324,0.004,2137.6,2137.0,1.16986429]
[1770554199514,0.002,2137.6,2137.2,0.96982215]
[1770554199930,0.004,2137.6,2137.3,1.16970008]
[1770554202673,0.004,2137.6,2136.9,0.9709855]
[1770554202860,0.004,2137.6,2136.9,1.16991596]
[1770554203279,0.004,2137.6,2137.0,1.16986049]
[1770554205283,1.17353592,2137.6,2136.7,1.17002854]
[1770554205570,0.95969053,2137.5,2136.7,1.17002854]
[1770554205774,0.95969053,2137.5,2136.4,3.27]
[1770554205775,0.95969053,2137.5,2136.6,1.17005909]
[1770554205975,0.95969053,2137.5,2136.4,3.27]
[1770554206164,0.96169053,2137.4,2136.6,1.17007644]
[1770554207783,1.17168115,2137.4,2136.5,4.68052991]
[1770554207977,0.002,2137.4,2136.6,0.04223766]
[1770554208286,0.002,2137.4,2136.9,0.04223766]
[1770554209043,0.002,2137.4,2136.6,0.04223766]
[1770554209893,0.002,2137.4,2136.7,1.17002854]
[1770554210256,0.002,2137.4,2136.8,0.0011]
[1770554210470,0.001,2137.3,2136.8,0.0011]
[1770554210849,0.002,2137.2,2136.8,0.0011]
[1770554211693,0.002,2137.6,2137.2,0.04223766]
[1770554213660,0.002,2137.6,2137.2,1.16970823]
[1770554213864,0.96169053,2137.6,2137.0,1.169833]
[1770554216155,0.002,2137.6,2136.8,0.0011]
[1770554216782,0.95969053,2139.1,2138.1,0.04223766]
[1770554216978,4.71384603,2139.6,2138.1,0.04223766]
[1770554217281,0.95969053,2139.4,2138.5,0.04223766]
[1770554217480,0.43617504,2139.3,2138.5,0.04223766]
[1770554217675,0.43617504,2139.2,2138.5,0.04223766]
[1770554217883,0.43617504,2139.1,2138.5,0.04223766]
[1770554218068,1.60495066,2139.0,2138.5,0.04223766]
[1770554218264,1.16875583,2139.1,2138.5,0.04223766]
[1770554218448,0.43580843,2139.0,2138.5,0.04223766]
[1770554218796,2.12833308,2139.3,2138.5,1.21126666]
[1770554219088,0.43579013,2139.2,2138.5,1.21126666]
[1770554219265,0.43579013,2139.1,2138.5,1.21126666]
[1770554219456,2.12833308,2139.3,2138.5,1.21126666]
[1770554219660,0.43555453,2139.2,2138.5,1.21126666]
[1770554219978,0.43555453,2139.1,2138.5,1.21126666]
[1770554220187,1.16849731,2139.5,2138.5,1.21126666]
[1770554220381,0.4355882,2139.4,2138.4,1.16906275]